bitfinex/quotes_SOLUSD_20250414
["timestamp","ask_amount","ask_price","bid_price","bid_amount"]
[1744601756137,11.16747745,132.59,132.54,17.71480413]
[1744601756536,0.28432314,132.58,132.54,17.71480413]
[1744601757062,11.67890413,132.59,132.54,17.71480413]
[1744601757238,0.28432314,132.58,132.54,17.71480413]
[1744601757438,11.67890413,132.59,132.54,17.71480413]
[1744601757840,0.03,132.6,132.55,13.31520413]
[1744601758048,0.31432314,132.6,132.55,13.31520413]
[1744601758359,0.03,132.6,132.55,13.31520413]
[1744601758660,0.31432314,132.6,132.55,13.31520413]
[1744601759050,0.17216157,132.6,132.56,6.035]
[1744601759261,0.31432314,132.6,132.56,6.035]
[1744601762049,0.03,132.6,132.56,23.93800413]
[1744601762254,0.03,132.6,132.57,11.67890413]
[1744601762763,0.03,132.6,132.59,11.67890413]
[1744601763153,11.67890413,132.67,132.59,117.03280413]
[1744601763362,0.03,132.68,132.63,11.67890413]
[1744601763545,0.03,132.68,132.64,11.67890413]
[1744601763741,0.28432314,132.67,132.63,6.2241]
[1744601763947,11.67890413,132.67,132.63,6.2241]
[1744601764150,11.67890413,132.66,132.59,111.578]
[1744601764358,0.28432314,132.65,132.6,11.67890413]
[1744601765045,18.82181043,132.68,132.63,11.67890413]
[1744601765366,0.14216157,132.67,132.64,6.0313]
[1744601765969,0.31432314,132.68,132.64,17.71020413]
[1744601766166,0.03,132.68,132.64,17.71020413]
[1744601769269,0.03,132.68,132.65,1.5342]
[1744601769472,0.03,132.68,132.67,11.67890413]
[1744601769655,0.03,132.69,132.67,94.27890413]
[1744601769858,0.03,132.69,132.68,11.67890413]
[1744601770163,0.03,132.72,132.71,32.425]
[1744601770346,0.03,132.72,132.71,25.72390413]
[1744601770657,0.03,132.72,132.71,20.0731]
[1744601772451,0.03,132.72,132.71,38.7174858]
[1744601777973,0.0001,132.73,132.71,139.9618716]
[1744601778178,0.0101,132.74,132.73,26.0]
[1744601778377,0.0101,132.74,132.73,44.6443858]
[1744601778879,0.0101,132.74,132.72,18.6443858]
[1744601779062,0.0101,132.74,132.73,18.6443858]
[1744601779884,0.0101,132.74,132.72,18.6443858]
[1744601780379,0.0101,132.74,132.71,121.3174858]
[1744601780977,0.0101,132.74,132.71,102.6731]
[1744601781276,0.0101,132.74,132.71,121.3174858]
[1744601781489,0.0101,132.74,132.72,18.6443858]
[1744601781658,0.0101,132.74,132.71,121.3174858]
[1744601782058,0.0101,132.74,132.72,18.6443858]
[1744601782474,0.0101,132.74,132.71,121.3174858]
[1744601782657,0.0101,132.74,132.71,96.2481]
[1744601783885,0.0101,132.74,132.71,13.6481]
[1744601784581,0.0101,132.74,132.7,6.0286]
[1744601784884,18.6443858,132.71,132.67,82.6]
[1744601785063,18.6443858,132.72,132.66,28.30513281]
[1744601785260,18.6443858,132.72,132.67,18.6443858]
[1744601785884,18.6443858,132.72,132.67,24.6741858]
[1744601786285,43.75751937,132.74,132.68,18.6443858]
[1744601786586,25.11313357,132.74,132.69,18.6443858]
[1744601786886,43.75751937,132.74,132.69,18.6443858]
[1744601787075,0.0101,132.74,132.71,18.6443858]
[1744601787275,0.0101,132.74,132.7,18.6443858]
[1744601787987,18.6544858,132.74,132.68,18.6443858]
[1744601788186,0.0101,132.74,132.69,18.6443858]
[1744601788390,0.0101,132.74,132.71,18.6443858]
[1744601788595,0.0101,132.74,132.73,18.6443858]
[1744601788886,0.29442314,132.74,132.69,7.62]
[1744601789064,18.93880894,132.74,132.69,7.62]
[1744601789585,18.93880894,132.74,132.69,26.2643858]
[1744601790591,0.29442314,132.74,132.7,6.0286]
[1744601791279,11.94928901,132.74,132.7,6.0286]
[1744601791467,11.94928901,132.74,132.67,11.65486587]
[1744601791468,0.28432314,132.72,132.67,11.65486587]
[1744601791668,0.28432314,132.72,132.68,11.65486587]
[1744601791987,17.97618901,132.74,132.68,11.65486587]
[1744601792193,0.29442314,132.74,132.7,11.65486587]
[1744601792693,0.0101,132.74,132.7,17.68336587]
[1744601793195,0.0101,132.74,132.73,11.65486587]
[1744601793368,0.0101,132.74,132.73,94.25486587]
[1744601794686,0.0101,132.74,132.73,100.28206587]
[1744601795297,0.0101,132.74,132.73,24.65875357]
[1744601796783,0.0101,132.74,132.73,126.050564]
[1744601797492,0.03,132.76,132.75,26.0]
[1744601797668,0.03,132.76,132.75,52.23155357]
[1744601798816,0.03,132.76,132.75,58.25785357]
[1744601798999,0.03,132.8,132.77,18.63155357]
[1744601799997,0.03,132.8,132.75,13.6263]
[1744601800202,18.66155357,132.8,132.75,13.6263]
[1744601800398,0.03,132.8,132.75,32.25785357]
[1744601801002,0.03,132.8,132.76,18.63155357]
[1744601801303,0.03,132.8,132.77,18.63155357]
[1744601802500,0.03,132.8,132.77,24.65695357]
[1744601802720,0.03,132.8,132.79,26.0]
[1744601802919,0.03,132.8,132.79,127.23155357]
[1744601803498,0.03,132.8,132.79,18.63155357]
[1744601804023,0.03,132.8,132.78,26.23155357]
[1744601804816,0.03,132.8,132.78,7.6]
[1744601805213,0.03,132.8,132.78,26.23155357]
[1744601806337,0.03,132.8,132.78,32.25635357]
[1744601806527,0.03,132.8,132.78,24.65635357]
[1744601806929,0.03,132.8,132.79,18.63155357]
[1744601808608,0.03,132.8,132.78,13.6248]
[1744601808910,0.03,132.8,132.77,6.0253]
[1744601809427,18.63155357,132.79,132.75,7.6]
[1744601809926,0.31432314,132.8,132.72,6.0275]
[1744601809927,18.63155357,132.76,132.72,6.0275]
[1744601810103,18.63155357,132.74,132.69,105.2716]
[1744601810429,0.28432314,132.73,132.69,13.629]
[1744601810618,0.28432314,132.72,132.69,13.629]
[1744601812014,18.91587671,132.72,132.69,7.6]
[1744601812218,18.91587671,132.72,132.68,6.0294]
[1744601812428,0.28432314,132.72,132.68,6.0294]
[1744601814142,43.73558714,132.72,132.66,277.01155357]
[1744601814426,37.70768714,132.7,132.65,6.0307]
[1744601814635,18.63155357,132.67,132.64,0.063]
[1744601814806,18.63155357,132.66,132.64,0.063]
[1744601815435,18.91587671,132.67,132.64,0.063]
[1744601817333,0.28432314,132.69,132.65,18.63155357]
[1744601817514,25.18955357,132.7,132.65,18.63155357]
[1744601817714,37.423364,132.69,132.64,18.69455357]
[1744601817909,0.28432314,132.68,132.64,18.69455357]
[1744601818429,0.28432314,132.68,132.65,6.0309]
[1744601818632,0.28432314,132.68,132.64,24.72575357]
[1744601818830,0.28432314,132.66,132.64,0.063]
[1744601819216,18.77371514,132.65,132.64,0.063]
[1744601819534,37.70768714,132.66,132.64,0.063]
[1744601819839,1.6431,132.67,132.64,0.063]
[1744601819840,37.70768714,132.65,132.64,0.063]
[1744601820526,43.73858714,132.65,132.64,0.063]
[1744601821037,37.70768714,132.65,132.64,0.063]
[1744601821364,0.14216157,132.68,132.64,0.063]
[1744601821641,37.28120243,132.69,132.64,18.69455357]
[1744601822040,18.64964886,132.69,132.64,18.69455357]
[1744601822418,25.33171514,132.7,132.65,18.63155357]
[1744601822637,25.33171514,132.7,132.66,6.0304]
[1744601823149,6.558,132.73,132.66,6.0304]
[1744601823322,0.14216157,132.74,132.7,18.63155357]
[1744601823639,18.77371514,132.74,132.69,18.63155357]
[1744601823839,18.77371514,132.74,132.66,21.1065]
[1744601823840,19.07613357,132.71,132.66,6.0304]
[1744601824138,37.56552557,132.71,132.66,24.66195357]
[1744601824449,0.14216157,132.7,132.66,24.66195357]
[1744601825249,0.14216157,132.68,132.64,18.69455357]
[1744601825923,0.14216157,132.68,132.64,24.72575357]
[1744601829329,0.14216157,132.7,132.65,18.63155357]
[1744601829524,0.14216157,132.71,132.66,18.63155357]
[1744601829923,0.28432314,132.71,132.66,18.63155357]
[1744601830550,0.42648471,132.71,132.66,18.63155357]
[1744601831146,0.42648471,132.71,132.67,6.0299]
[1744601832748,0.28432314,132.71,132.67,24.66145357]
[1744601833625,19.05803828,132.71,132.67,6.0299]
[1744601835262,0.14216157,132.69,132.64,0.063]
[1744601835551,18.91587671,132.7,132.65,24.66225357]
[1744601835853,18.63155357,132.7,132.65,6.0307]
[1744601836229,18.63155357,132.69,132.65,6.0307]
[1744601837843,0.28432314,132.68,132.64,6.0941]
[1744601838445,19.07613357,132.68,132.64,0.063]
[1744601838644,0.28432314,132.66,132.64,0.063]
[1744601838965,18.91587671,132.65,132.64,0.063]
[1744601839143,18.63155357,132.66,132.64,0.063]
[1744601839460,0.28432314,132.66,132.64,0.063]
[1744601839959,18.91587671,132.66,132.64,0.063]
[1744601840461,0.28432314,132.66,132.64,0.063]
[1744601840855,18.91587671,132.66,132.64,0.063]
[1744601841152,37.70768714,132.68,132.64,6.0943]
[1744601841549,19.07613357,132.68,132.64,6.0943]
[1744601841855,37.70768714,132.68,132.64,6.0943]
[1744601842458,43.73728714,132.68,132.64,0.063]
[1744601842660,37.70768714,132.65,132.64,0.063]
[1744601843127,43.73858714,132.65,132.64,0.063]
[1744601843328,51.47348714,132.65,132.64,0.063]
[1744601846659,38.926664,132.65,132.64,0.063]
[1744601846843,18.63155357,132.68,132.64,0.063]
[1744601847042,1.6065,132.73,132.67,18.63155357]
[1744601847238,20.23805357,132.73,132.68,18.63155357]
[1744601847441,19.07613357,132.72,132.68,18.63155357]
[1744601847745,18.77371514,132.72,132.67,18.63155357]
[1744601847930,0.28432314,132.71,132.67,18.63155357]
[1744601848346,1.6065,132.73,132.68,18.63155357]
[1744601848560,18.63155357,132.73,132.68,18.63155357]
[1744601848869,0.28432314,132.72,132.69,6.029]
[1744601849037,18.63155357,132.73,132.69,6.029]
[1744601849361,0.28432314,132.72,132.69,6.029]
[1744601849557,37.423364,132.74,132.69,6.029]
[1744601849765,18.63155357,132.72,132.68,6.0294]
[1744601850263,0.14216157,132.72,132.68,6.0294]
[1744601851659,18.77371514,132.72,132.68,6.0294]
[1744601852162,0.28432314,132.76,132.68,26.17945357]
[1744601852456,84.5065,132.77,132.72,18.63155357]
[1744601852457,18.63155357,132.77,132.72,18.63155357]
[1744601852642,18.66155357,132.8,132.75,18.63155357]
[1744601852845,19.10613357,132.8,132.75,18.63155357]
[1744601853036,37.453364,132.8,132.75,18.63155357]
[1744601853238,37.453364,132.8,132.74,18.63155357]
[1744601853448,18.63155357,132.78,132.72,6.0277]
[1744601853635,18.63155357,132.78,132.72,24.65925357]
[1744601855470,18.63155357,132.76,132.7,15.0711]
[1744601855653,18.63155357,132.76,132.71,6.0281]
[1744601855972,18.91587671,132.74,132.7,6.0285]
[1744601856168,0.28432314,132.76,132.7,24.66005357]
[1744601856343,18.63155357,132.77,132.72,18.63155357]
[1744601857068,18.63155357,132.77,132.71,18.63155357]
[1744601857243,0.14216157,132.78,132.72,18.63155357]
[1744601857441,18.77371514,132.78,132.73,6.0272]
[1744601857867,18.63155357,132.76,132.7,18.63155357]
[1744601858065,18.63155357,132.75,132.7,6.0286]
[1744601859173,18.63155357,132.75,132.7,24.66015357]
[1744601859366,18.63155357,132.78,132.73,18.63155357]
[1744601859672,18.63155357,132.77,132.72,18.63155357]
[1744601860356,18.63155357,132.77,132.73,6.0272]
[1744601861184,0.28432314,132.79,132.73,6.0272]
[1744601861346,0.03,132.8,132.74,9.1599]
[1744601861553,0.03,132.8,132.77,26.0]
[1744601861754,0.03,132.8,132.77,18.63155357]
[1744601861970,37.453364,132.8,132.74,84.1799]
[1744601862148,0.14216157,132.79,132.73,6.0272]
[1744601862354,18.63155357,132.78,132.73,24.65875357]
[1744601862781,18.91587671,132.79,132.73,24.65875357]
[1744601863472,18.91587671,132.79,132.73,6.0272]
[1744601863473,18.63155357,132.78,132.73,6.0272]
[1744601863675,18.63155357,132.77,132.73,6.0272]
[1744601864184,18.63155357,132.78,132.73,24.65875357]
[1744601864477,18.63155357,132.78,132.73,6.0272]
[1744601864682,18.63155357,132.77,132.73,6.0272]
[1744601865267,6.30892314,132.79,132.73,6.0272]
[1744601865268,18.63155357,132.76,132.73,6.0272]
[1744601865786,1.91262314,132.79,132.73,6.0272]
[1744601865961,18.63155357,132.78,132.73,24.65875357]
[1744601866285,0.03,132.8,132.77,18.63155357]
[1744601866451,0.03,132.8,132.78,6.0246]
[1744601866657,0.03,132.8,132.77,6.0253]
[1744601867379,0.03,132.8,132.77,24.65685357]
[1744601867563,0.03,132.8,132.77,6.0253]
[1744601868564,0.03,132.8,132.78,18.63155357]
[1744601868964,0.03,132.8,132.77,39.72045357]
[1744601869177,0.03,132.8,132.77,6.0253]
[1744601869484,0.03,132.8,132.77,5.0253]
[1744601870678,0.03,132.8,132.77,23.65685357]
[1744601870869,0.03,132.8,132.78,18.63155357]
[1744601871981,0.03,132.8,132.77,38.72045357]
[1744601872697,18.63155357,132.79,132.76,13.6057]
[1744601872984,18.63155357,132.78,132.76,13.6057]
[1744601873290,0.03,132.8,132.76,13.6057]
[1744601873581,0.03,132.8,132.73,6.0272]
[1744601873582,18.63155357,132.77,132.73,6.0272]
[1744601873894,18.63155357,132.76,132.73,6.0272]
[1744601874261,18.63155357,132.75,132.72,6.0277]
[1744601876387,18.63155357,132.74,132.71,6.0281]
[1744601877291,6.0257,132.77,132.71,6.0281]
[1744601877489,18.63155357,132.75,132.71,6.0281]
[1744601877710,37.26310714,132.72,132.67,0.063]
[1744601877919,18.63155357,132.69,132.67,0.063]
[1744601878396,18.63155357,132.69,132.67,6.0928]
[1744601878601,18.63155357,132.68,132.67,0.063]
[1744601878981,18.63155357,132.71,132.67,0.063]
[1744601879195,18.63155357,132.69,132.67,0.063]
[1744601879396,18.63155357,132.68,132.67,0.063]
[1744601880791,0.28432314,132.7,132.67,0.063]
[1744601881308,18.63155357,132.68,132.67,0.063]
[1744601881900,19.07613357,132.7,132.67,0.063]
[1744601882086,18.63155357,132.68,132.67,0.063]
[1744601882610,18.91587671,132.68,132.67,0.063]
[1744601882814,43.73718714,132.68,132.67,0.063]
[1744601883106,18.63155357,132.68,132.67,0.063]
[1744601885604,0.28432314,132.69,132.67,0.063]
[1744601885809,18.63155357,132.68,132.67,0.063]
[1744601887012,0.28432314,132.69,132.67,0.063]
[1744601887317,82.9,132.74,132.67,0.063]
[1744601887318,7.58,132.75,132.67,0.063]
[1744601887503,0.14216157,132.71,132.67,0.063]
[1744601887809,18.91587671,132.68,132.67,0.063]
[1744601888019,19.07613357,132.68,132.67,0.063]
[1744601888194,37.70768714,132.68,132.67,0.063]
[1744601888998,43.73718714,132.68,132.67,0.063]
[1744601890698,58.81098714,132.68,132.64,0.063]
[1744601891015,0.28432314,132.65,132.64,0.063]
[1744601891722,18.91587671,132.65,132.64,0.063]
[1744601892212,24.67934886,132.68,132.64,0.063]
[1744601892418,18.63155357,132.69,132.64,0.063]
[1744601892628,6.0279,132.72,132.67,18.63155357]
[1744601892797,19.07613357,132.71,132.66,18.63155357]
[1744601892998,37.423364,132.71,132.66,18.63155357]
[1744601893225,18.79181043,132.71,132.66,18.63155357]
[1744601893513,0.28432314,132.7,132.66,18.63155357]
[1744601893722,18.79181043,132.71,132.65,1.6233]
[1744601893723,43.451864,132.71,132.65,26.28545357]
[1744601894024,0.14216157,132.7,132.66,18.63155357]
[1744601894216,18.63155357,132.73,132.68,18.63155357]
[1744601894428,18.79181043,132.74,132.69,18.63155357]
[1744601894717,18.91587671,132.73,132.68,18.63155357]
[1744601895094,18.63155357,132.7,132.65,26.28545357]
[1744601895295,0.28432314,132.69,132.65,7.6539]
[1744601895528,18.91587671,132.69,132.65,7.6539]
[1744601895828,18.91587671,132.69,132.64,6.0942]
[1744601896116,18.63155357,132.67,132.64,0.063]
[1744601896296,0.28432314,132.67,132.64,0.063]
[1744601897013,18.91587671,132.65,132.64,0.063]
[1744601897323,37.70768714,132.65,132.64,0.063]
[1744601897921,43.73858714,132.65,132.64,0.063]
[1744601898624,63.89734071,132.65,132.64,0.0001]
[1744601898800,51.33383357,132.63,132.62,0.063]
[1744601899000,69.96538714,132.63,132.62,0.063]
[1744601899515,44.79181043,132.6,132.59,0.063]
[1744601899718,63.70768714,132.6,132.59,0.063]
[1744601899903,19.07613357,132.59,132.58,0.063]
[1744601900213,37.70768714,132.59,132.58,0.063]
[1744601900420,37.70768714,132.59,132.54,0.063]
[1744601900724,37.70768714,132.56,132.54,0.063]
[1744601901221,56.33924071,132.56,132.54,0.063]
[1744601901599,62.59694071,132.56,132.54,0.063]
[1744601901799,68.63194071,132.56,132.54,0.063]
[1744601902216,19.07613357,132.55,132.54,0.063]
[1744601902412,44.79181043,132.52,132.51,0.063]
[1744601902624,37.70768714,132.52,132.51,0.063]
[1744601903823,37.70768714,132.52,132.47,0.063]
[1744601903824,26.0,132.48,132.47,0.063]
[1744601904012,63.70768714,132.48,132.47,0.063]
[1744601904910,69.74628714,132.48,132.47,0.063]
[1744601905116,37.423364,132.46,132.45,0.063]
[1744601905324,26.0,132.43,132.41,0.063]
[1744601905521,44.91587671,132.43,132.41,0.063]
[1744601905719,63.70768714,132.43,132.41,0.063]
[1744601905920,37.70768714,132.43,132.41,0.063]
[1744601907027,43.74858714,132.43,132.41,0.063]
[1744601907415,101.97613357,132.42,132.4,0.063]
[1744601907622,58.40630714,132.43,132.39,0.063]
[1744601907623,45.07613357,132.4,132.39,0.063]
[1744601907815,82.33924071,132.4,132.39,0.063]
[1744601908937,82.33924071,132.4,132.38,0.063]
[1744601909113,44.79181043,132.37,132.36,0.063]
[1744601909307,63.70768714,132.37,132.36,0.063]
[1744601910122,0.14216157,132.32,132.27,1.5546]
[1744601910427,18.63155357,132.3,132.27,1.5546]
[1744601910803,18.91587671,132.31,132.27,1.5546]
[1744601911003,0.28432314,132.31,132.27,7.6027]
[1744601911229,18.91587671,132.31,132.27,7.6027]
[1744601911731,18.91587671,132.31,132.27,6.1027]
[1744601911928,6.33072314,132.31,132.27,0.0546]
[1744601912114,0.28432314,132.29,132.26,6.2561]
[1744601912313,18.91587671,132.29,132.25,6.049]
[1744601913021,0.28432314,132.3,132.25,24.68055357]
[1744601913222,37.70768714,132.28,132.22,6.2561]
[1744601913424,18.63155357,132.24,132.22,6.2561]
[1744601913816,18.63155357,132.24,132.21,6.0508]
[1744601914016,18.63155357,132.23,132.21,6.0508]
[1744601914334,0.28432314,132.21,132.15,6.0537]
[1744601914627,18.63155357,132.19,132.15,6.0537]
[1744601915033,18.63155357,132.17,132.14,12.1771]
[1744601915239,18.63155357,132.16,132.14,12.1771]
[1744601915410,18.63155357,132.17,132.14,12.1771]
[1744601915815,18.79181043,132.19,132.14,12.1771]
[1744601916032,18.63155357,132.2,132.15,18.63155357]
[1744601916227,18.63155357,132.16,132.12,6.0548]
[1744601916431,18.79181043,132.17,132.11,6.0554]
[1744601916432,0.28432314,132.15,132.11,6.0554]
[1744601916648,18.63155357,132.13,132.11,6.0554]
[1744601916835,18.63155357,132.13,132.09,6.0564]
[1744601917222,18.91587671,132.15,132.09,18.63155357]
[1744601917418,18.63155357,132.13,132.08,39.82985357]
[1744601917623,18.63155357,132.14,132.08,21.1983]
[1744601917928,18.63155357,132.15,132.1,18.63155357]
[1744601918133,18.63155357,132.13,132.08,39.82985357]
[1744601918435,18.63155357,132.15,132.1,18.63155357]
[1744601918633,108.15325357,132.24,132.12,18.63155357]
[1744601918825,18.63155357,132.15,132.08,21.1983]
[1744601919029,18.63155357,132.13,132.08,39.82985357]
[1744601919228,0.42648471,132.15,132.08,21.1983]
[1744601919425,18.63155357,132.14,132.08,39.82985357]
[1744601919634,0.42648471,132.15,132.08,39.82985357]
[1744601919635,0.28432314,132.15,132.08,39.82985357]
[1744601919945,0.42648471,132.17,132.1,18.63155357]
[1744601920129,18.63155357,132.15,132.1,18.63155357]
[1744601920327,18.63155357,132.16,132.1,18.63155357]
[1744601920535,18.63155357,132.15,132.09,18.63155357]
[1744601921039,0.42648471,132.17,132.09,18.63155357]
[1744601921234,18.63155357,132.16,132.1,39.82755357]
[1744601921441,18.63155357,132.17,132.11,18.63155357]
[1744601921951,18.63155357,132.16,132.1,39.82755357]
[1744601922923,18.63155357,132.17,132.12,18.63155357]
[1744601923146,18.63155357,132.18,132.13,18.63155357]
[1744601923824,24.69884886,132.25,132.16,18.63155357]
[1744601924024,18.63155357,132.19,132.15,6.1906]
[1744601924249,0.14216157,132.15,132.11,6.1906]
[1744601924440,18.63155357,132.13,132.09,1.6318]
[1744601924958,18.63155357,132.13,132.1,6.056]
[1744601925653,0.28432314,132.19,132.1,24.68755357]
[1744601925846,18.63155357,132.16,132.11,18.63155357]
[1744601926048,18.63155357,132.17,132.11,18.63155357]
[1744601926244,18.79181043,132.2,132.1,21.196]
[1744601926436,18.63155357,132.14,132.1,6.056]
[1744601926631,18.63155357,132.12,132.08,6.0569]
[1744601926837,18.63155357,132.13,132.08,6.0569]
[1744601927031,18.63155357,132.11,132.08,6.0569]
[1744601927540,18.63155357,132.12,132.08,6.0569]
[1744601927736,18.63155357,132.13,132.08,6.0569]
[1744601928137,18.63155357,132.12,132.08,6.0569]
[1744601928339,18.63155357,132.12,132.07,6.1906]
[1744601928340,18.63155357,132.09,132.07,6.1906]
[1744601928545,18.63155357,132.1,132.05,1.6318]
[1744601928937,18.63155357,132.1,132.06,6.0575]
[1744601929454,0.28432314,132.09,132.05,7.6899]
[1744601929666,18.63155357,132.08,132.05,6.0581]
[1744601929854,0.42648471,132.11,132.05,6.0581]
[1744601930051,18.63155357,132.09,132.05,6.0581]
[1744601930359,18.63155357,132.1,132.05,6.0581]
[1744601930555,18.933972,132.11,132.05,6.0581]
[1744601930761,18.63155357,132.1,132.05,6.0581]
[1744601930960,18.63155357,132.1,132.04,39.83715357]
[1744601931166,18.91587671,132.11,132.05,18.63155357]
[1744601931871,18.63155357,132.1,132.04,39.83715357]
[1744601933350,18.63155357,132.08,132.04,6.0587]
[1744601933547,24.84701043,132.12,132.04,6.0587]
[1744601933857,18.63155357,132.1,132.04,24.69025357]
[1744601934258,6.48168471,132.12,132.04,6.0587]
[1744601934259,18.91587671,132.09,132.04,6.0587]
[1744601934771,18.63155357,132.1,132.04,24.69025357]
[1744601934949,0.28432314,132.11,132.04,39.83715357]
[1744601934950,18.91587671,132.11,132.04,39.83715357]
[1744601935642,18.91587671,132.11,132.04,21.2056]
[1744601935839,18.91587671,132.11,132.04,39.83715357]
[1744601935840,18.63155357,132.1,132.04,39.83715357]
[1744601937264,0.42648471,132.14,132.06,6.0578]
[1744601937460,37.423364,132.07,132.03,2.6176755]
[1744601937665,18.63155357,132.04,132.03,2.6176755]
[1744601937846,18.63155357,132.05,132.03,2.6176755]
[1744601938239,18.63155357,132.06,132.03,2.6176755]
[1744601938870,18.63155357,132.05,132.03,2.6176755]
[1744601939161,18.63155357,132.04,132.03,2.6176755]
[1744601939566,18.63155357,132.05,132.03,2.6176755]
[1744601939957,18.91587671,132.06,132.03,2.6176755]
[1744601940464,0.28432314,132.06,132.03,2.6176755]
[1744601940659,37.70768714,132.04,132.03,2.6176755]
[1744601941248,43.76638714,132.04,132.03,2.6176755]
[1744601941444,19.07613357,131.99,131.98,0.063]
[1744601941668,1.0,131.88,131.79,44.3615]
[1744601941871,19.63155357,131.88,131.82,18.63155357]
[1744601942071,1.0,131.91,131.87,18.63155357]
[1744601942252,1.0,131.91,131.79,21.2458]
[1744601942253,1.0,131.86,131.79,21.2458]
[1744601942454,1.0,131.91,131.84,18.63155357]
[1744601942766,1.0,131.88,131.83,18.63155357]
[1744601942972,19.63155357,131.91,131.85,18.63155357]
[1744601943269,1.0,131.89,131.84,26.0]
[1744601943453,1.28432314,131.88,131.84,26.0]
[1744601943653,1.0,131.9,131.86,18.63155357]
[1744601943855,1.0,131.9,131.85,18.63155357]
[1744601943856,1.0,131.88,131.85,18.63155357]
[1744601944052,1.0,131.88,131.84,18.63155357]
[1744601944253,1.0,131.82,131.78,3.93976583]
[1744601944554,1.0,131.86,131.81,18.63155357]
[1744601944869,1.0,131.86,131.82,18.63155357]
[1744601945051,1.0,131.88,131.85,18.63155357]
[1744601945251,1.0,131.86,131.85,18.63155357]
[1744601945453,1.0,131.86,131.84,18.63155357]
[1744601945965,1.0,131.89,131.85,18.63155357]
[1744601946156,1.0,131.91,131.87,18.63155357]
[1744601946576,1.0,131.93,131.89,18.63155357]
[1744601946750,1.0,131.92,131.88,18.63155357]
[1744601946954,1.0,131.92,131.84,26.83155357]
[1744601946955,1.0,131.92,131.89,18.63155357]
[1744601947165,1.0,131.93,131.89,27.88579326]
[1744601947457,1.0,131.92,131.88,27.88579326]
[1744601947772,1.0,131.93,131.89,27.88579326]
[1744601948081,1.0,131.93,131.91,27.88579326]
[1744601948259,1.0,131.92,131.9,27.88579326]
[1744601948457,46.67760369,131.96,131.9,27.88579326]
[1744601948458,1.14216157,131.94,131.9,27.88579326]
[1744601948773,1.0,131.94,131.91,27.88579326]
[1744601949071,1.0,131.93,131.91,27.88579326]
[1744601949256,1.0,131.94,131.91,27.88579326]
[1744601949455,1.0,131.94,131.84,36.08579326]
[1744601949456,1.0,131.96,131.93,27.88579326]
[1744601949776,1.0,131.99,131.95,27.88579326]
[1744601949980,1.0,132.0,131.97,27.88579326]
[1744601950151,1.0,132.02,131.98,27.88579326]
[1744601950355,1.0,132.0,131.98,27.88579326]
[1744601950588,1.0,131.99,131.96,27.88579326]
[1744601950787,1.0,132.03,131.96,8.2]
[1744601950963,1.0,131.99,131.97,27.88579326]
[1744601951284,1.0,131.98,131.94,27.88579326]
[1744601951457,1.0,131.99,131.97,27.88579326]
[1744601952172,1.0,131.99,131.93,6.0638]
[1744601952376,1.0,131.99,131.96,27.88579326]
[1744601952560,1.0,132.01,131.97,27.88579326]
[1744601952756,1.0,132.0,131.97,27.88579326]
[1744601952959,1.0,132.02,131.97,27.88579326]
[1744601953283,1.0,132.03,131.99,27.88579326]
[1744601953586,33.91789326,132.05,131.98,27.88579326]
[1744601953587,1.0,132.01,131.98,27.88579326]
[1744601953781,27.88579326,132.04,131.98,27.88579326]
[1744601953782,1.0,132.03,131.99,27.88579326]
[1744601954087,1.0,132.01,131.98,33.94719326]
[1744601954384,1.0,132.02,131.99,27.88579326]
[1744601954583,1.0,132.03,131.99,27.88579326]
[1744601954756,1.0,132.04,132.0,27.88579326]
[1744601954961,1.03,132.05,132.01,27.88579326]
[1744601955156,1.0,132.04,132.0,27.88579326]
[1744601955465,1.0,132.04,132.0,33.94629326]
[1744601955671,1.0,132.04,132.0,6.0605]
[1744601955860,1.0,132.02,131.98,33.94689326]
[1744601956060,1.0,132.0,131.97,42.14769326]
[1744601956256,1.0,132.0,131.96,6.0623]
[1744601956499,1.0,131.99,131.96,6.0623]
[1744601956673,1.0,131.99,131.96,33.94809326]